Cogmind - Beta 10.2 --- EXPLORER MODE // 2021.12.09 @ 16:18:42 Player: STEVENSEAGAL Result: Self-destructed Performance ------------- Evolutions (8) 4000 Regions Visited (19) 3800 Robots Destroyed (122) 610 Value Destroyed (4448) 4448 Prototype IDs (39) 780 Alien Tech Used (2) 400 Bonus (4830) 4830 TOTAL SCORE: 18868 Bonus ------- High Alert Combat Kills 502 Follower Combat Kills 628 Entered Garrisons 400 Used RIF Installer 1000 Aligned with FarCom 300 Met Sigix 2000 Cogmind --------- Core Integrity 1161/1450 Matter 186/300 Energy 104/350 System Corruption 7% Temperature Cool (0) Movement Flying (105) Ox1 Location -2/Quarantine Parts ------- > --- POWER (2) -------- Quantum Reactor > --- PROPULSION (9) --- Cooled Field Propulsion Drive Q-thruster Cooled Impulse Thruster Experimental Q-thruster > --- UTILITY (11) ----- Large Storage Unit Nanoactuators Nanoactuators Experimental Focal Shield Relay Coupler [NC] (52) Relay Coupler [Brawler] (48) Relay Coupler [Sentry] (37) > --- WEAPON (2) ------- (None) > --- INVENTORY (10) --- Light Quantum Reactor Remote Force Field Subatomic Replicator Heavy EM Shotgun Wave Gun Guided Micro-nuke Launcher Advanced Remote Datajack Powered Hammer Enhanced Force Lance Peak State ------------ > --- POWER ------------ Light Quantum Reactor Light Quantum Reactor > --- PROPULSION ------- Cooled Field Propulsion Drive Field Propulsion Array Diametric Drive Q-thruster Cooled Impulse Thruster Impulse Thruster Array Experimental Q-thruster > --- UTILITY ---------- Large Storage Unit Improved Melee Analysis Suite Nanoactuators Nanoactuators Improved Propulsion Shielding Phase Armor Experimental Focal Shield Relay Coupler [NC] Relay Coupler [Brawler] Relay Coupler [Sentry] > --- WEAPON ----------- Advanced Remote Datajack Powered Hammer > --- INVENTORY -------- Q-thruster Remote Force Field Subatomic Replicator Heavy EM Shotgun Wave Gun Advanced Remote Datajack Enhanced Force Lance [Rating: 175] Favorites ----------- Power Light Ion Engine Engine Light Ion Engine Power Core Light Nuclear Core Reactor Light Quantum Reactor Propulsion Armored Treads Treads Armored Treads Leg Aluminum Leg Wheel Wheel Flight Unit Nuclear Pulse Array Utility Humpback Device Sensor Array Storage Humpback Processor Targeting Computer Hackware Relay Coupler [Sentry] Protection Improved Propulsion Shielding Artifact Phase Armor Weapon Longsword +1 Energy Gun EM Pulse Gun Energy Cannon Guided Plasma Cannon Ballistic Gun Flak Gun Launcher Rocket Launcher Special Weapon Advanced Remote Datajack Impact Weapon Powered Hammer Slashing Weapon Longsword +1 Piercing Weapon Enhanced Force Lance Special Melee Weapon Improved Datajack Build | -11 -10 -10 -9 -9 -9 -8 -8 -8 -8 -6 -6 -5 -5 -4 -4 -4 -3 -2 -2 ------- Run | Scr Mat Min Mat Min Exi Min Mat Sto Rec Fac Gar Fac Gar Fac Ext Cet Res Res Qua Slots Evolved 17 | . 1 . 2 . . . 2 . . 4 . 2 . 2 . . 2 2 . Power 1 | . . . . . . . . . . . . . . 1 . . . . . Propulsion 7 | . . . 1 . . . . . . 4 . 2 . . . . . . . Utility 9 | . 1 . 1 . . . 2 . . . . . . 1 . . 2 2 . Weapon . | . . . . . . . . . . . . . . . . . . . . Parts Attached 147 | 10 5 . 4 2 . 4 8 6 2 6 38 18 1 3 3 . 8 15 14 Power 17 | 1 . . . . . . 1 1 . 1 4 2 . . . . 1 2 4 Engine 8 | 1 . . . . . . 1 . . 1 3 2 . . . . . . . Core 2 | . . . . . . . . 1 . . 1 . . . . . . . . Reactor 7 | . . . . . . . . . . . . . . . . . 1 2 4 Propulsion 42 | 4 . . 1 . . 1 . 2 . 4 11 7 . 2 . . 3 6 1 Treads 10 | . . . . . . . . 2 . 4 4 . . . . . . . . Leg 2 | 2 . . . . . . . . . . . . . . . . . . . Wheel 4 | 2 . . 1 . . 1 . . . . . . . . . . . . . Hover . | . . . . . . . . . . . . . . . . . . . . Flight 26 | . . . . . . . . . . . 7 7 . 2 . . 3 6 1 Utility 39 | 3 5 . 2 . . . 4 . 1 1 7 1 1 1 3 . 3 4 3 Device 15 | 1 1 . 1 . . . 1 . 1 1 3 . . 1 . . 1 3 1 Storage 6 | 1 1 . 1 . . . 2 . . . 1 . . . . . . . . Processor 5 | 1 1 . . . . . 1 . . . 1 . . . . . . 1 . Hackware 8 | . . . . . . . . . . . 2 1 1 . 3 . . . 1 Protection 4 | . 2 . . . . . . . . . . . . . . . 2 . . Artifact 1 | . . . . . . . . . . . . . . . . . . . 1 Weapon 49 | 2 . . 1 2 . 3 3 3 1 . 16 8 . . . . 1 3 6 Energy Gun 15 | 2 . . . 2 . 1 1 1 . . 5 3 . . . . . . . Energy Cannon 6 | . . . . . . . 1 1 1 . 3 . . . . . . . . Ballistic Gun 1 | . . . . . . . . . . . 1 . . . . . . . . Ballistic Cannon . | . . . . . . . . . . . . . . . . . . . . Launcher 6 | . . . . . . 2 . . . . 3 . . . . . . 1 . Special Weapon 1 | . . . . . . . . . . . . . . . . . . . 1 Impact Weapon 7 | . . . . . . . . . . . . . . . . . . 2 5 Slashing Weapon 10 | . . . 1 . . . 1 1 . . 4 3 . . . . . . . Piercing Weapon 1 | . . . . . . . . . . . . . . . . . 1 . . Special Melee Weapon 2 | . . . . . . . . . . . . 2 . . . . . . . Unidentified Prototypes 14 | . . . . . . . . . . . 5 . . . . . 1 6 2 Parts Lost 37 | . . . . . . 1 2 5 . . 4 1 1 . 6 . 6 3 8 Power 5 | . . . . . . . 1 1 . . . . . . . . 1 . 2 Propulsion 18 | . . . . . . 1 1 2 . . 2 . 1 . 4 . 3 . 4 Utility 9 | . . . . . . . . . . . 1 1 . . 1 . 1 3 2 Weapon 5 | . . . . . . . . 2 . . 1 . . . 1 . 1 . . Highest Loss Streak 8 | . . . . . . 1 1 2 . . 1 1 1 . 6 . 4 2 8 Average Slot Usage (%) 79 | . 98 100 93 100 100 99 68 64 73 77 82 87 83 80 76 55 66 72 74 Engine 5 | . 12 12 10 10 10 10 7 3 . 1 3 4 5 5 5 5 3 . . Core 2 | . . . . . . . . 4 8 4 2 . . . . . . . . Treads 10 | . . . . . . . . 14 16 33 29 . . . . . . . . Wheel 10 | . 25 25 26 30 30 29 23 4 . . . . . . . . . . . Flight 6 | . . . . . . . . . . . 8 43 33 33 30 15 20 28 27 Device 4 | . 14 . 7 10 10 10 . . 7 6 4 2 . 2 3 . 2 5 12 Storage 14 | . 15 25 20 20 20 20 16 16 16 12 10 5 5 5 5 5 4 4 4 Processor 8 | . 5 12 10 10 10 10 8 8 8 6 8 11 11 10 7 5 4 5 5 Hackware 2 | . . . . . . . . . . . 3 13 15 14 15 20 17 11 10 Energy Gun 6 | . 25 25 19 17 20 13 3 3 . . . . . . . . . . . Energy Cannon 1 | . . . . . . . . . 7 6 2 . . . . . . . . Slashing Weapon 4 | . . . . 2 . . 7 7 8 6 4 1 5 5 5 5 3 . . Naked Turns . | . . . . . . . . . . . . . . . . . . . . Heaviest Build 189 | 16 31 31 40 40 40 42 170 171 179 183 189 38 32 33 33 31 49 57 100 Greatest Support 170 | 20 20 20 36 36 36 36 36 40 40 140 170 62 60 53 53 49 102 104 100 Greatest Overweight (x) 62 | 2 1 1 1 1 1 1 6 6 4 4 62 1 . . 1 . . 1 1 Average Overweight (x) 1 | . . 1 1 1 1 1 4 4 4 1 1 . . . . . . . . Largest Inventory Capacity 44 | 8 14 14 16 16 16 16 44 44 44 44 44 10 10 10 10 10 10 10 10 Average Capacity 30 | 7 9 14 15 16 16 16 43 44 44 44 36 10 10 10 10 10 10 10 10 Most Carried 44 | 8 13 14 14 13 16 16 19 24 24 36 44 10 10 10 10 7 9 10 10 Average Carried 18 | 4 7 13 13 13 14 15 13 20 22 31 32 9 8 10 8 7 7 9 9 Final Capacity 44 | 8 14 14 16 16 16 16 44 44 44 44 10 10 10 10 10 10 10 10 10 Final Carried 35 | 6 13 14 13 13 15 15 18 24 23 35 10 9 10 10 7 7 8 9 10 Class Distribution -------------------- 50% | Hauler-Mutant 26% | Hacker-Mutant 6% | Commander-Mutant 6% | Hacker-Sprinter 5% | Bothacker-Sprinter Dominant Class ---------------- Hacker-Mutant | -10/Materials Hacker-Mutant | -10/Mines Hacker-Mutant | -9/Materials Hacker-Mutant | -9/Mines Hacker-Mutant | -9/Exiles Hacker-Mutant | -8/Mines Hauler-Mutant | -8/Materials Hauler-Mutant | -8/Storage Hauler-Mutant | -8/Recycling Hauler-Mutant | -6/Factory Hauler-Mutant | -6/Garrison Bothacker-Sprinter | -5/Factory Bothacker-Sprinter | -5/Garrison Bothacker-Sprinter | -4/Factory Bothacker-Mutant | -4/Extension Hacker-Mutant | -4/Cetus Hacker-Sprinter | -3/Research Hacker-Sprinter | -2/Research Hacker-Sprinter | -2/Quarantine Resources | -11 -10 -10 -9 -9 -9 -8 -8 -8 -8 -6 -6 -5 -5 -4 -4 -4 -3 -2 -2 ----------- Run | Scr Mat Min Mat Min Exi Min Mat Sto Rec Fac Gar Fac Gar Fac Ext Cet Res Res Qua Matter Collected 1611 | 229 121 . . 60 . 128 75 50 20 60 349 248 . . 65 . 65 56 85 Remotely . | . . . . . . . . . . . . . . . . . . . . Salvage Created 4947 | 152 160 40 76 178 . 109 536 1186 203 560 932 422 . . 26 . 222 145 . Parts 243 | 11 15 3 8 12 . 15 20 67 13 17 36 21 . . . . 5 . . Haulers Intercepted 1 | . . . . . . . . . . . . . . . . . 1 . . Recyclers Shooed . | . . . . . . . . . . . . . . . . . . . . Parts Field Recycled . | . . . . . . . . . . . . . . . . . . . . Retrieved Matter . | . . . . . . . . . . . . . . . . . . . . Parts Self-Destructed . | . . . . . . . . . . . . . . . . . . . . Prevented . | . . . . . . . . . . . . . . . . . . . . Kills | -11 -10 -10 -9 -9 -9 -8 -8 -8 -8 -6 -6 -5 -5 -4 -4 -4 -3 -2 -2 ------- Run | Scr Mat Min Mat Min Exi Min Mat Sto Rec Fac Gar Fac Gar Fac Ext Cet Res Res Qua Combat Hostiles Destroyed 95 | . 5 2 1 6 . 7 10 19 9 6 23 5 . . . . 1 1 . Melee 43 | . . . . . . . 7 19 . 4 10 2 . . . . 1 . . Guns 19 | . 5 2 1 6 . 1 1 . . . 1 2 . . . . . . . Cannons 15 | . . . . . . . . . 8 2 5 . . . . . . . . AOE 14 | . . . . . . 6 1 . 1 . 6 . . . . . . . . Classes Destroyed 14 | 2 3 . 2 . . 2 . . 1 . 3 . . . . . 1 . . Worker 4 | . . . . . . 2 . 1 . . . . . . 1 . . . . Tunneler 3 | 2 . . . . . . . . . . . . . . . . 1 . . Hauler 1 | . . . . . . . . . . . . . . . . . 1 . . Recycler 6 | 1 . . . . . . . 2 2 1 . . . . . . . . . Operator 4 | . . . 1 . . . 1 1 . . . 1 . . . . . . . Drone 9 | . . . . . . . . . 9 . . . . . . . . . . Watcher 9 | . 3 . . . . . . 2 . 1 . 2 . . . . . 1 . Swarmer 29 | . 4 2 . 4 . 6 . 2 . . 11 . . . . . . . . Grunt 34 | . 1 . . 2 . . 7 7 . 6 6 5 . . . . . . . Duelist 1 | . . . . . . . . . . . 1 . . . . . . . . Sentry 16 | . . . 1 . . . 2 10 . . 1 . . . . . 1 1 . Hunter 4 | . . . . . . 1 1 . . . 2 . . . . . . . . Programmer 1 | . . . . . . . . . . . 1 . . . . . . . . Behemoth 1 | . . . . . . . . . . . 1 . . . . . . . . Best Kill Streak 5 | 3 3 2 1 2 . 5 3 3 4 3 4 5 . . 1 . 1 1 . Combat Bots Only 5 | . 2 2 1 2 . 3 3 3 3 2 4 5 . . . . 1 1 . Max Kills in Single Turn 2 | 2 2 2 1 2 . 2 2 1 1 1 2 1 . . 1 . 1 1 . Gunslinging 1 | . 1 . . 1 . . . . . . . . . . . . . . . Exploded 2 | . . . . . . 2 1 . 1 . 2 . . . . . . . . Melee 1 | . . . . . . . 1 1 . 1 1 1 . . . . 1 . . Uniques/NPCs Destroyed . | . . . . . . . . . . . . . . . . . . . . Combat | -11 -10 -10 -9 -9 -9 -8 -8 -8 -8 -6 -6 -5 -5 -4 -4 -4 -3 -2 -2 -------- Run | Scr Mat Min Mat Min Exi Min Mat Sto Rec Fac Gar Fac Gar Fac Ext Cet Res Res Qua Damage Taken 6060 | . 93 13 29 35 . 124 357 599 14 287 1790 244 113 . 376 . 586 156 1244 Core 958 | . 23 . 11 . . 37 36 70 7 12 121 46 38 . 97 . 171 7 282 Absorbed by Shields 20 | . . . . . . . . . . . 6 . . . 14 . . . . Core Remaining (%) 88 | 100 . 90 . . . 88 . . 79 . 84 . 91 . . 91 86 . . Volleys Fired 148 | 3 16 2 4 9 . 12 7 14 21 16 34 10 . . . . . . . Largest 2 | 2 2 2 2 2 . 2 1 1 1 1 1 1 . . . . . . . Hottest 250 | 80 80 80 80 80 . 80 250 120 120 120 250 50 . . . . . . . Shots Fired 186 | 6 32 4 8 18 . 16 7 14 21 16 34 10 . . . . . . . Gun 112 | 6 32 4 8 18 . 8 5 11 . . 10 10 . . . . . . . Cannon 62 | . . . . . . . 2 3 21 16 20 . . . . . . . . Launcher 12 | . . . . . . 8 . . . . 4 . . . . . . . . Special . | . . . . . . . . . . . . . . . . . . . . Kinetic 1 | . . . . . . . . . . . 1 . . . . . . . . Thermal 78 | . . . . . . . 2 14 21 16 25 . . . . . . . . Explosive 12 | . . . . . . 8 . . . . 4 . . . . . . . . Electromagnetic 95 | 6 32 4 8 18 . 8 5 . . . 4 10 . . . . . . . Robot Hit Streak 51 | 2 9 2 5 14 . 14 15 19 29 45 51 17 . . . . . . . Robot Miss Streak 2 | 1 2 2 1 1 . 1 . 1 . . 1 1 . . . . . . . Penetration Max . | . . . . . . . . . . . . . . . . . . . . Secondary Targets 3 | . 2 . . 1 . . . . . . . . . . . . . . . Max Gunslinging Chain 1 | . 1 . . 1 . . . . . . . . . . . . . . . Shots Hit Robots 313 | 3 22 2 6 14 . 14 30 59 21 28 51 25 4 1 7 . 10 16 . Core Hits 163 | 4 9 2 3 9 . 12 15 27 11 14 37 12 . . . . 5 3 . Critical Hits 5 | . . . . . . . . 2 . . 2 1 . . . . . . . Critical Kills 1 | . . . . . . . . . . . . 1 . . . . . . . Critical Parts Destroyed 3 | . . . . . . . . 2 . . 1 . . . . . . . . Melee Attacks 192 | . . . 1 3 . . 25 64 1 12 23 17 5 1 7 . 10 16 7 Impact 23 | . . . . . . . . . . . . . . . . . . 16 7 Slashing 151 | . . . 1 3 . . 25 64 1 12 23 9 1 . 2 . 10 . . Piercing . | . . . . . . . . . . . . . . . . . . . . Sneak Attacks 13 | . . . . . . . . 6 1 . . 2 1 . 1 . 2 . . Combat Hostiles 2 | . . . . . . . . 1 . . . . 1 . . . . . . Follow-up Attacks . | . . . . . . . . . . . . . . . . . . . . Damage Inflicted 12128 | 66 368 21 58 172 . 598 1276 2856 966 1078 2552 781 . . 222 . 693 421 . Guns 1337 | 66 294 21 58 172 . 92 68 174 . . 166 226 . . . . . . . Cannons 2209 | . . . . . . . 42 112 708 571 776 . . . . . . . . Explosions 1398 | . 74 . . . . 506 143 . 57 . 618 . . . . . . . . Melee 7134 | . . . . . . . 1023 2570 151 507 992 555 . . 222 . 693 421 . Ramming 50 | . . . . . . . . . 50 . . . . . . . . . . Kinetic . | . . . . . . . . . . . . . . . . . . . . Thermal 2845 | . 74 . . . . . 185 286 708 571 1021 . . . . . . . . Explosive 1057 | . . . . . . 506 . . 57 . 494 . . . . . . . . Electromagnetic 1042 | 66 294 21 58 172 . 92 68 . . . 45 226 . . . . . . . Impact 421 | . . . . . . . . . . . . . . . . . . 421 . Slashing 6713 | . . . . . . . 1023 2570 151 507 992 555 . . 222 . 693 . . Piercing . | . . . . . . . . . . . . . . . . . . . . Highest Corruption 7 | . . . . . . . . . . . . 2 2 . 1 1 . . 7 Average Corruption 2 | . . . . . . . . . . . . 1 2 . 1 1 . . 3 Corruption Purged . | . . . . . . . . . . . . . . . . . . . . Effects 12 | . . . . . . . . . . . . 4 1 . 2 . . . 5 Message Errors 5 | . . . . . . . . . . . . 1 1 . . . . . 3 Heat Flow Errors 1 | . . . . . . . . . . . . . . . . . . . 1 Energy Discharges 4 | . . . . . . . . . . . . 1 . . 2 . . . 1 Data Loss (minor) 2 | . . . . . . . . . . . . 2 . . . . . . . Overload Shots . | . . . . . . . . . . . . . . . . . . . . Overflow Damage 1211 | . . . . . . 2 46 533 154 61 100 57 . . 124 . 98 36 . Projectiles 241 | . . . . . . . . . 154 37 50 . . . . . . . . Explosions 38 | . . . . . . 2 11 . . . 25 . . . . . . . . Melee 932 | . . . . . . . 35 533 . 24 25 57 . . 124 . 98 36 . Knockbacks . | . . . . . . . . . . . . . . . . . . . . Impact . | . . . . . . . . . . . . . . . . . . . . Kinetic . | . . . . . . . . . . . . . . . . . . . . Secondary . | . . . . . . . . . . . . . . . . . . . . Self-Inflicted Damage 101 | . . . . . . 23 18 . 14 . 46 . . . . . . . . Shots 7 | . . . . . . 1 2 . 1 . 3 . . . . . . . . Rammed 2 | . . . . . . . . . 2 . . . . . . . . . . Targets Rammed 2 | . . . . . . . . . 2 . . . . . . . . . . Kicked . | . . . . . . . . . . . . . . . . . . . . Crushed . | . . . . . . . . . . . . . . . . . . . . Highest Temperature 432 | 36 96 36 27 69 . 36 425 179 432 274 346 24 8 4 . . 23 25 206 Average Temperature 79 | 18 40 20 10 28 . 19 215 41 116 99 140 8 5 4 . . 13 12 115 Received Heat Transfer 1980 | . 30 . 18 24 . . 216 414 . 189 402 120 81 . 114 . 183 27 162 Effects 1 | . . . . . . . . . . . 1 . . . . . . . . Short Circuit 1 | . . . . . . . . . . . 1 . . . . . . . . Siege Activations . | . . . . . . . . . . . . . . . . . . . . Robots Corrupted 1 | . . . . . . . . . . . . 1 . . . . . . . Combat Hostiles 1 | . . . . . . . . . . . . 1 . . . . . . . Parts Fried 6 | . . . . 1 . . . . . . . 4 . . . . . 1 . Impact Corruptions 2 | . . . . . . . . . . . . . . . . . . 2 . Robots Melted 2 | . . . . . . . 1 . . . 1 . . . . . . . . Combat Hostiles 2 | . . . . . . . 1 . . . 1 . . . . . . . . Parts Melted 26 | . . . . . . . 6 1 3 2 14 . . . . . . . . Heat Transferred 6915 | . 100 . . . . . 960 610 1600 1280 2365 . . . . . . . . Parts Sabotaged . | . . . . . . . . . . . . . . . . . . . . Parts Stolen . | . . . . . . . . . . . . . . . . . . . . Parts Stripped . | . . . . . . . . . . . . . . . . . . . . Power Chain Reactions 3 | . 2 . . . . . . . . . 1 . . . . . . . . Missiles Intercepted . | . . . . . . . . . . . . . . . . . . . . Alert | -11 -10 -10 -9 -9 -9 -8 -8 -8 -8 -6 -6 -5 -5 -4 -4 -4 -3 -2 -2 ------- Run | Scr Mat Min Mat Min Exi Min Mat Sto Rec Fac Gar Fac Gar Fac Ext Cet Res Res Qua Peak Influence 1003 | 15 196 62 86 173 . 189 256 282 176 1003 908 471 115 74 192 12 80 149 658 Initial 901 | . 7 8 . 23 . . 8 29 13 901 308 354 65 44 26 12 5 33 62 Average 181 | 7 59 31 64 64 . 68 65 79 52 864 591 143 76 50 83 12 34 75 266 Maximum Alert Level 3 | . . . . . . . 1 1 . 3 3 2 . . . . . . 2 Low Security (%) 75 | 100 100 100 100 100 . 100 91 84 100 . . 68 100 100 100 100 100 100 47 Level 1 7 | . . . . . . . 8 15 . . 17 25 . . . . . . 22 Level 2 6 | . . . . . . . . . . . 47 6 . . . . . . 30 Level 3 10 | . . . . . . . . . . 99 35 . . . . . . . . Level 4 . | . . . . . . . . . . . . . . . . . . . . Level 5 . | . . . . . . . . . . . . . . . . . . . . High Security . | . . . . . . . . . . . . . . . . . . . . Max Security . | . . . . . . . . . . . . . . . . . . . . Squads Dispatched 38 | . 1 . . . . . 3 6 . 3 . 9 . . 3 . 2 2 9 Investigation 19 | . 1 . . . . . 1 . . 2 . 4 . . 3 . 2 . 6 Extermination . | . . . . . . . . . . . . . . . . . . . . Reinforcement 11 | . . . . . . . 2 3 . . . 2 . . . . . 2 2 Assault 2 | . . . . . . . . . . 1 . . . . . . . . 1 Garrison 6 | . . . . . . . . 3 . . . 3 . . . . . . . Intercept . | . . . . . . . . . . . . . . . . . . . . Construction Impeded . | . . . . . . . . . . . . . . . . . . . . Haulers Reinforced . | . . . . . . . . . . . . . . . . . . . . Alert ID Control Effect 1 | . . . . . . . . . . . . . 1 . . . . . . Stealth | -11 -10 -10 -9 -9 -9 -8 -8 -8 -8 -6 -6 -5 -5 -4 -4 -4 -3 -2 -2 --------- Run | Scr Mat Min Mat Min Exi Min Mat Sto Rec Fac Gar Fac Gar Fac Ext Cet Res Res Qua Distress Signals 8 | . 1 . . . . . 1 2 . . . 1 . . . 1 . . 2 Communications Jammed . | . . . . . . . . . . . . . . . . . . . . Distress Signals . | . . . . . . . . . . . . . . . . . . . . Times Spotted 298 | . 8 2 2 6 . 6 29 37 43 18 25 20 5 1 16 4 15 7 54 Peak Tracking Total 30 | . 3 2 2 2 . 3 5 4 4 6 5 11 3 1 5 5 9 4 30 Tactical Retreats 37 | . . . . 2 . . 8 3 . 5 . 2 1 . 3 . 3 1 9 Traps | -11 -10 -10 -9 -9 -9 -8 -8 -8 -8 -6 -6 -5 -5 -4 -4 -4 -3 -2 -2 ------- Run | Scr Mat Min Mat Min Exi Min Mat Sto Rec Fac Gar Fac Gar Fac Ext Cet Res Res Qua Traps Triggered 14 | . 2 . . . . . . 3 . . 4 2 1 . . . . . 2 Indirectly . | . . . . . . . . . . . . . . . . . . . . Trap Hack Attempts . | . . . . . . . . . . . . . . . . . . . . Triggered . | . . . . . . . . . . . . . . . . . . . . Disarmed . | . . . . . . . . . . . . . . . . . . . . Reprogrammed 4 | . . . . . . . . 4 . . . . . . . . . . . Reused . | . . . . . . . . . . . . . . . . . . . . Traps Extracted . | . . . . . . . . . . . . . . . . . . . . Installed . | . . . . . . . . . . . . . . . . . . . . Triggered . | . . . . . . . . . . . . . . . . . . . . Machines | -11 -10 -10 -9 -9 -9 -8 -8 -8 -8 -6 -6 -5 -5 -4 -4 -4 -3 -2 -2 ---------- Run | Scr Mat Min Mat Min Exi Min Mat Sto Rec Fac Gar Fac Gar Fac Ext Cet Res Res Qua Machines Disabled 17 | . . 1 . . . . 2 3 6 . 2 . 1 . . . . . 2 Max in Single Turn 2 | . . 1 . . . . 1 1 2 . 1 . 1 . . . . . 1 Garrison Relay 3 | . . . . . . . . . . . 2 . 1 . . . . . . Phase Generator 1 | . . . . . . . . . . . 1 . . . . . . . . Machines Sabotaged . | . . . . . . . . . . . . . . . . . . . . Garrisons Compromised . | . . . . . . . . . . . . . . . . . . . . Overloaded Fab Kills . | . . . . . . . . . . . . . . . . . . . . Fab Network Shutdowns . | . . . . . . . . . . . . . . . . . . . . Hacking | -11 -10 -10 -9 -9 -9 -8 -8 -8 -8 -6 -6 -5 -5 -4 -4 -4 -3 -2 -2 --------- Run | Scr Mat Min Mat Min Exi Min Mat Sto Rec Fac Gar Fac Gar Fac Ext Cet Res Res Qua Machines Accessed 65 | . 6 . 1 1 4 . 4 9 6 4 . 6 . . 9 . 2 3 10 Terminals 54 | . 6 . 1 1 . . 4 8 5 2 . 4 . . 9 . 2 2 10 Fabricators . | . . . . . . . . . . . . . . . . . . . . Repair Stations 2 | . . . . . . . . 1 . . . 1 . . . . . . . Recycling Units 1 | . . . . . . . . . 1 . . . . . . . . . . Scanalyzers 2 | . . . . . . . . . . 1 . . . . . . . 1 . Garrison Access 2 | . . . . . . . . . . 1 . 1 . . . . . . . Total Hacks 207 | . 17 . 3 1 27 . 16 29 15 15 . 23 . . 23 . 6 9 23 Successful 136 | . 10 . 3 . 27 . 7 24 11 11 . 15 . . 10 . 4 4 10 Failed 71 | . 7 . . 1 . . 9 5 4 4 . 8 . . 13 . 2 5 13 Catastrophic 9 | . 1 . . . . . 1 . . . . . . . . . . 2 5 Database Lockouts . | . . . . . . . . . . . . . . . . . . . . Manual 80 | . 13 . 3 1 3 . 12 9 5 2 . 4 . . 6 . . 6 16 Terminals 164 | . 17 . 3 1 . . 16 27 14 8 . 18 . . 23 . 6 8 23 Fabricators . | . . . . . . . . . . . . . . . . . . . . Repair Stations 6 | . . . . . . . . 2 . . . 4 . . . . . . . Recycling Units 1 | . . . . . . . . . 1 . . . . . . . . . . Scanalyzers 7 | . . . . . . . . . . 6 . . . . . . . 1 . Garrison Access 2 | . . . . . . . . . . 1 . 1 . . . . . . . Terminal Hacks 113 | . 10 . 3 . 27 . 7 22 7 5 . 8 . . 8 . 4 3 9 Record 46 | . . . . . 26 . 2 2 . 2 . 3 . . 1 . 1 2 7 Part Schematic 4 | . . . . . . . . 2 . 2 . . . . . . . . . Robot Analysis 2 | . . . . . . . . 1 1 . . . . . . . . . . Prototype ID Bank 1 | . . . . . . . . . . 1 . . . . . . . . . Open Door 9 | . . . . . . . . 3 . . . . . . 5 . . . 1 Level Access Points 3 | . 2 . . . . . . . . . . . . . . . . . 1 Branch Access Points 4 | . 2 . 1 . . . 1 . . . . . . . . . . . . Emergency Access Points 4 | . 1 . . . . . 1 . 1 . . . . . . . . 1 . Alert Level 2 | . . . . . . . . 1 1 . . . . . . . . . . Unreport Threat 11 | . . . . . . . 2 3 1 . . 3 . . 1 . 1 . . Locate Traps 1 | . 1 . . . . . . . . . . . . . . . . . . Reprogram Traps 1 | . . . . . . . . 1 . . . . . . . . . . . Maintenance Status 1 | . . . . . . . . 1 . . . . . . . . . . . Surveillance Status 1 | . . . . . . . . 1 . . . . . . . . . . . Garrison Status 2 | . 1 . 1 . . . . . . . . . . . . . . . . Hauler Manifests 3 | . . . . . . . . 2 1 . . . . . . . . . . Registered Components 1 | . . . . . . . . 1 . . . . . . . . . . . Registered Prototypes 1 | . . . . . . . . 1 . . . . . . . . . . . Zone Layout 15 | . 3 . 1 . . . 1 3 2 . . 2 . . 1 . 2 . . EX-Prototype ID Bank 1 | . . . . . 1 . . . . . . . . . . . . . . Fabricator Hacks . | . . . . . . . . . . . . . . . . . . . . Repair Station Hacks 4 | . . . . . . . . 2 . . . 2 . . . . . . . Scan Component 2 | . . . . . . . . 1 . . . 1 . . . . . . . Repair 2 | . . . . . . . . 1 . . . 1 . . . . . . . Recycling Unit Hacks . | . . . . . . . . . . . . . . . . . . . . Scanalyzer 3 | . . . . . . . . . . 3 . . . . . . . . . Insert Component 2 | . . . . . . . . . . 2 . . . . . . . . . Analyze 1 | . . . . . . . . . . 1 . . . . . . . . . Garrison Access Hacks 2 | . . . . . . . . . . 1 . 1 . . . . . . . Unlock Access 2 | . . . . . . . . . . 1 . 1 . . . . . . . Unauthorized Hacks 14 | . . . . . . . . . 4 2 . 4 . . 2 . . 1 1 Terminals 14 | . . . . . . . . . 4 2 . 4 . . 2 . . 1 1 Botnet 14 | . . . . . . . . . 4 2 . 4 . . 2 . . 1 1 Fabricators . | . . . . . . . . . . . . . . . . . . . . Repair Stations . | . . . . . . . . . . . . . . . . . . . . Recycling Units . | . . . . . . . . . . . . . . . . . . . . Scanalyzers . | . . . . . . . . . . . . . . . . . . . . Garrison Access . | . . . . . . . . . . . . . . . . . . . . Data Cores Recovered 2 | . . . 1 . . . . . . . . 1 . . . . . . . Used . | . . . . . . . . . . . . . . . . . . . . Hacking Detections 49 | . 5 . 1 . . . 4 6 3 4 . 5 . . 7 . 2 3 9 Full Trace Events 21 | . 3 . 1 . . . 2 . . 2 . 3 . . 2 . 2 . 6 Feedback Events 3 | . . . . . . . . . . . . 2 . . . . . . 1 Corruption 3 | . . . . . . . . . . . . 2 . . . . . . 1 Feedback Blocked . | . . . . . . . . . . . . . . . . . . . . Robot Schematics Acquired . | . . . . . . . . . . . . . . . . . . . . Robots Built . | . . . . . . . . . . . . . . . . . . . . Matter . | . . . . . . . . . . . . . . . . . . . . Time . | . . . . . . . . . . . . . . . . . . . . Total Robot Build Rating . | . . . . . . . . . . . . . . . . . . . . Part Schematics Acquired 5 | . . . . . . . . 2 . 3 . . . . . . . . . Parts Built . | . . . . . . . . . . . . . . . . . . . . Matter . | . . . . . . . . . . . . . . . . . . . . Time . | . . . . . . . . . . . . . . . . . . . . Total Part Build Rating . | . . . . . . . . . . . . . . . . . . . . Parts Repaired 2 | . . . . . . . . 1 . . . 1 . . . . . . . Time 72 | . . . . . . . . 32 . . . 40 . . . . . . . Parts Recycled . | . . . . . . . . . . . . . . . . . . . . Recycled Matter . | . . . . . . . . . . . . . . . . . . . . Retrieved Matter . | . . . . . . . . . . . . . . . . . . . . Retrieved Components . | . . . . . . . . . . . . . . . . . . . . Parts Scanalyzed 2 | . . . . . . . . . . 2 . . . . . . . . . Part Schematics Acquired 1 | . . . . . . . . . . 1 . . . . . . . . . Parts Damaged . | . . . . . . . . . . . . . . . . . . . . Bothacking | -11 -10 -10 -9 -9 -9 -8 -8 -8 -8 -6 -6 -5 -5 -4 -4 -4 -3 -2 -2 ------------ Run | Scr Mat Min Mat Min Exi Min Mat Sto Rec Fac Gar Fac Gar Fac Ext Cet Res Res Qua Used RIF Installer 2 | . . . . . . . . . . . 1 . 1 . . . . . . Alert ID Control 1 | . . . . . . . . . . . . . 1 . . . . . . Robots Hacked 8 | . . . . . . . . . . . . 2 3 1 2 . . . . Non-combat 2 | . . . . . . . . . . . . 1 . . 1 . . . . Combat 6 | . . . . . . . . . . . . 1 3 1 1 . . . . Robot Hacks Applied 13 | . . . . . . . . . . . . 6 3 1 3 . . . . parse_system 2 | . . . . . . . . . . . . 1 . . 1 . . . . find_shortcuts 2 | . . . . . . . . . . . . 1 . . 1 . . . . find_garrison 1 | . . . . . . . . . . . . 1 . . . . . . . link_fov 1 | . . . . . . . . . . . . 1 . . . . . . . go_dormant 1 | . . . . . . . . . . . . . . . 1 . . . . formatsys_high 6 | . . . . . . . . . . . . 2 3 1 . . . . . Relay Couplers Released 12 | . . . . . . . . . . . 8 . 4 . . . . . . Machine Destruction 12 | . . . . . . . . . . . 8 . 4 . . . . . . Attached 8 | . . . . . . . . . . . 2 1 1 . 3 . . . 1 Robots Rewired . | . . . . . . . . . . . . . . . . . . . . Allies Hacked . | . . . . . . . . . . . . . . . . . . . . Hacks Repelled . | . . . . . . . . . . . . . . . . . . . . Allies | -11 -10 -10 -9 -9 -9 -8 -8 -8 -8 -6 -6 -5 -5 -4 -4 -4 -3 -2 -2 -------- Run | Scr Mat Min Mat Min Exi Min Mat Sto Rec Fac Gar Fac Gar Fac Ext Cet Res Res Qua Total Allies 23 | . . . . . . . . 10 . . . 2 3 1 7 . . . . Largest Group 10 | . . . . . . . . 10 6 . . 2 3 3 10 . . . . Highest-Rated Group 483 | . . . . . . . . 173 109 . . 66 87 107 483 . . . . Highest-Rated Ally 156 | . . . . . . . . 29 29 . . 49 29 49 156 . . . . Total Orders 6 | . . . . . . . . . . . . 5 1 . . . . . . STAY 1 | . . . . . . . . . . . . 1 . . . . . . . ROAM 3 | . . . . . . . . . . . . 3 . . . . . . . FOLLOW 2 | . . . . . . . . . . . . 1 1 . . . . . . Ally Attacks 330 | . . . . . . . . 26 210 . . 8 17 . 69 . . . . Total Damage 5174 | . . . . . . . . 369 1514 . . 386 239 . 2666 . . . . Kills 70 | . . . . . . . . 5 47 . . 3 1 . 14 . . . . Allies Corrupted . | . . . . . . . . . . . . . . . . . . . . Allies Melted . | . . . . . . . . . . . . . . . . . . . . Intel | -11 -10 -10 -9 -9 -9 -8 -8 -8 -8 -6 -6 -5 -5 -4 -4 -4 -3 -2 -2 ------- Run | Scr Mat Min Mat Min Exi Min Mat Sto Rec Fac Gar Fac Gar Fac Ext Cet Res Res Qua Robot Analysis Total 2 | . . . . . . . . 1 1 . . . . . . . . . . Derelict Logs Recovered 1 | . . 1 . . . . . . . . . . . . . . . . . Drone Launches . | . . . . . . . . . . . . . . . . . . . . Drone Recoveries . | . . . . . . . . . . . . . . . . . . . . Exploration | -11 -10 -10 -9 -9 -9 -8 -8 -8 -8 -6 -6 -5 -5 -4 -4 -4 -3 -2 -2 ------------- Run | Scr Mat Min Mat Min Exi Min Mat Sto Rec Fac Gar Fac Gar Fac Ext Cet Res Res Qua Turns Passed 13118 | 114 529 625 168 524 602 711 1409 2575 1625 805 1338 646 140 76 475 26 181 231 318 Spaces Moved 9260 | 74 408 662 91 482 619 574 608 791 566 378 643 752 140 112 618 77 387 422 856 Core 9 | 7 . . . . . . . . . . 2 . . . . . . . . Treads 2047 | . . . . . . . . 701 566 378 402 . . . . . . . . Legs 34 | 34 . . . . . . . . . . . . . . . . . . . Wheels 3567 | 33 408 662 91 482 619 574 608 90 . . . . . . . . . . . Hover . | . . . . . . . . . . . . . . . . . . . . Flight 3603 | . . . . . . . . . . . 239 752 140 112 618 77 387 422 856 Fastest Speed 16 | 50 80 90 90 96 96 96 126 150 250 182 19 16 26 27 27 34 25 17 16 Average Speed 103 | 99 83 90 92 96 96 96 130 238 250 189 151 30 31 28 43 34 30 25 29 Slowest Speed 3150 | 150 90 90 96 96 96 100 150 250 250 250 3150 103 32 32 117 34 37 109 120 Overloaded Moves 6 | . . . . . . . . . . . . . . . . . . . 6 Propulsion Burnouts . | . . . . . . . . . . . . . . . . . . . . Robots Hopped 19 | . . . . . . . . . . . . . . . . . . . 19 Cave-ins Triggered . | . . . . . . . . . . . . . . . . . . . . Exploration Rate (%) 48 | 6 62 99 14 76 92 84 40 91 97 9 61 14 40 2 71 23 12 14 57 Regions Visited 19 Branch Regions 9 Pre-discovered Areas . | . . . . . . . . . . . . . . . . . . . . Known Exits Taken 17 | 1 1 1 1 1 1 1 1 1 1 1 . 1 . 1 1 1 1 1 . Unknown Exits Taken . | . . . . . . . . . . . . . . . . . . . . Scrap Searched 2 | . . 1 . 1 . . . . . . . . . . . . . . . Spaces Dug 16 | . . . 1 1 . . 2 8 . . . 1 . . . . . . 3 Terrain Destroyed 149 | . 8 . 1 1 . 71 11 8 12 . 33 1 . . . . . . 3 Melee 16 | . . . 1 1 . . 2 8 . . . 1 . . . . . . 3 Projectile . | . . . . . . . . . . . . . . . . . . . . AOE 133 | . 8 . . . . 71 9 . 12 . 33 . . . . . . . . Terrain Rammed . | . . . . . . . . . . . . . . . . . . . . Walls Destroyed . | . . . . . . . . . . . . . . . . . . . . Machines Disabled . | . . . . . . . . . . . . . . . . . . . . Actions | -11 -10 -10 -9 -9 -9 -8 -8 -8 -8 -6 -6 -5 -5 -4 -4 -4 -3 -2 -2 --------- Run | Scr Mat Min Mat Min Exi Min Mat Sto Rec Fac Gar Fac Gar Fac Ext Cet Res Res Qua Total 12464 | 111 564 687 164 518 629 715 1195 1401 752 442 962 1149 232 153 822 76 439 542 911 Wait 2417 | . 126 23 62 23 . 125 523 513 160 12 118 332 68 37 193 . 24 71 7 Move 9203 | 73 407 661 90 481 618 573 607 790 565 377 642 751 138 111 617 76 386 421 819 Hop 18 | . . . . . . . . . . . . . . . . . . . 18 Pick Up 145 | 19 7 1 2 . 5 1 13 10 1 17 28 7 2 . . . 9 12 11 Fast Attach 18 | . 1 . . . . . . . . . 3 7 . 3 . . . 3 1 Attach 109 | 10 3 . 2 . . 1 8 4 2 6 26 8 1 . 3 . 9 12 14 Detach 35 | . 3 . . . . . 5 . . . 14 4 . . . . 1 2 6 Swap 22 | . 1 . 2 2 . 3 . 2 . . 9 3 . . . . . . . Drop 70 | 6 . . 1 . 6 . 7 . . 2 20 10 . 1 2 . . 5 10 Fire 148 | 3 16 2 4 9 . 12 7 14 21 16 34 10 . . . . . . . Melee 192 | . . . 1 3 . . 25 64 1 12 23 17 5 1 7 . 10 16 7 Ram . | . . . . . . . . . . . . . . . . . . . . Kick . | . . . . . . . . . . . . . . . . . . . . Crush 2 | . . . . . . . . . 2 . . . . . . . . . . Escape Stasis 85 | . . . . . . . . 4 . . 45 . 18 . . . . . 18 Rewire . | . . . . . . . . . . . . . . . . . . . . Trap . | . . . . . . . . . . . . . . . . . . . . Miscellaneous . | . . . . . . . . . . . . . . . . . . . . Route ------- -11/Scrapyard -10/Materials (discovered 5 exits: *Mat x3 / *Min x2) -10/Mines (discovered 2 exits: *Mat x2) -9/Materials (discovered 3 exits: Mat / *Min x2) -9/Mines (discovered 3 exits: *Mat x2 / *Exi) -9/Exiles (discovered 2 exits: *Min x2) -8/Mines -8/Materials (discovered 3 exits: *Fac x2 / *Sto) -8/Storage (discovered 2 exits: *Fac / *Rec) -8/Recycling -6/Factory -6/Garrison -5/Factory -5/Garrison -4/Factory -4/Extension (discovered 3 exits: *Res x2 / *Cet) -4/Cetus -3/Research -2/Research -2/Quarantine (discovered 1 exit: Acc) History --------- Turn | Location | Event 15 | -11/Scrapyard | Identified exit to Materials 15 | -11/Scrapyard | Discovered exit to Materials (range 16) 115 | -11/Scrapyard | Entered Materials 115 | -10/Materials | Evolved 1 slot: Utility x1 128 | -10/Materials | Identified exit to Mines 311 | -10/Materials | Build established: Hacker-Mutant 393 | -10/Materials | Identified exit to Materials 644 | -10/Materials | Entered Mines 701 | -10/Mines | Discovered exit to Materials (range 7) 707 | -10/Mines | Received a Rocket Launcher from a helpful Derelict 788 | -10/Mines | Learned 4 Materials zone layouts 927 | -10/Mines | Discovered exit to Materials (range 7) 1269 | -10/Mines | Entered Materials 1269 | -9/Materials | Evolved 2 slots: Propulsion x1, Utility x1 1270 | -9/Materials | Identified exit to Materials 1270 | -9/Materials | Identified exit to Mines 1437 | -9/Materials | Entered Mines 1494 | -9/Mines | Discovered exit to Materials (range 5) 1527 | -9/Mines | Discovered exit to Materials (range 6) 1777 | -9/Mines | Deemed a non-threat by the Exiles lab entrance 1778 | -9/Mines | Identified exit to Exiles 1778 | -9/Mines | Discovered exit to Exiles (range 5) 1961 | -9/Mines | Entered Exiles 1978 | -9/Exiles | Identified exit to Mines 1978 | -9/Exiles | Discovered exit to Mines (range 15) 2010 | -9/Exiles | Met 8R-AWN 2024 | -9/Exiles | Met EX-HEX 2074 | -9/Exiles | Met EX-BIN 2094 | -9/Exiles | Aligned with FarCom system 2095 | -9/Exiles | Given EX-Vault access code 2175 | -9/Exiles | Opened EX-Vault 2180 | -9/Exiles | Found Firepult 2183 | -9/Exiles | Found Longsword +1 2188 | -9/Exiles | Found Gui. Plasma Cannon 2211 | -9/Exiles | Warned to stay clear of 0b10 Research branches 2236 | -9/Exiles | Met EX-DEC 2270 | -9/Exiles | Visited The Gauntlet 2466 | -9/Exiles | Discovered exit to Mines (range 14) 2563 | -9/Exiles | Stole three prototypes: Firepult, Longsword +1, Gui. Plasma Cannon 2563 | -9/Exiles | Entered Mines 2859 | -8/Mines | Discovered exit to Materials (range 12) 3274 | -8/Mines | Entered Materials 3274 | -8/Materials | Evolved 2 slots: Utility x2 3736 | -8/Materials | Build established: Hauler-Mutant 3797 | -8/Materials | Identified exit to Factory 3797 | -8/Materials | Discovered exit to Factory (range 14) 4331 | -8/Materials | Discovered exit to Factory (range 16) 4538 | -8/Materials | Identified exit to Storage 4683 | -8/Materials | Entered Storage 5550 | -8/Storage | Garrison activated, responded to threat 5673 | -8/Storage | Discovered exit to Factory (range 7) 6324 | -8/Storage | Repaired Rocket Launcher 6432 | -8/Storage | Assisted by bots powering up and referring to "LRC-V3" 6725 | -8/Storage | Build established: Commander-Mutant 7176 | -8/Storage | Found Prototype Launcher 7235 | -8/Storage | Identified exit to Recycling 7235 | -8/Storage | Discovered exit to Recycling (range 3) 7258 | -8/Storage | Entered Recycling 7258 | -8/Recycling | Accompanied by 6 allies 7282 | -8/Recycling | Spotter reported a threat 7313 | -8/Recycling | Spotter reported a threat 7316 | -8/Recycling | Spotter reported a threat 7328 | -8/Recycling | Spotter reported a threat 7333 | -8/Recycling | Spotter reported a threat 7352 | -8/Recycling | Spotter reported a threat 7365 | -8/Recycling | Spotter reported a threat 7369 | -8/Recycling | Spotter reported a threat 7372 | -8/Recycling | Spotter reported a threat 7440 | -8/Recycling | Spotter reported a threat 7449 | -8/Recycling | Spotter reported a threat 7489 | -8/Recycling | Spotter reported a threat 7515 | -8/Recycling | Spotter reported a threat 7524 | -8/Recycling | Spotter reported a threat 7525 | -8/Recycling | Spotter reported a threat 7541 | -8/Recycling | Build established: Hauler-Mutant 7542 | -8/Recycling | Spotter reported a threat 7556 | -8/Recycling | Spotter reported a threat 7556 | -8/Recycling | Spotter reported a threat 7556 | -8/Recycling | Spotter reported a threat 7600 | -8/Recycling | Spotter reported a threat 7600 | -8/Recycling | Spotter reported a threat 7600 | -8/Recycling | Spotter reported a threat 7609 | -8/Recycling | Spotter reported a threat 7653 | -8/Recycling | Spotter reported a threat 7677 | -8/Recycling | Spotter reported a threat 7701 | -8/Recycling | Spotter reported a threat 7704 | -8/Recycling | Spotter reported a threat 7706 | -8/Recycling | Spotter reported a threat 7730 | -8/Recycling | Spotter reported a threat 7783 | -8/Recycling | Spotter reported a threat 7813 | -8/Recycling | Spotter reported a threat 7813 | -8/Recycling | Spotter reported a threat 7823 | -8/Recycling | Spotter reported a threat 8086 | -8/Recycling | Spotter reported a threat 8116 | -8/Recycling | Spotter reported a threat 8123 | -8/Recycling | Spotter reported a threat 8139 | -8/Recycling | Spotter reported a threat 8176 | -8/Recycling | Spotter reported a threat 8179 | -8/Recycling | Spotter reported a threat 8192 | -8/Recycling | Spotter reported a threat 8196 | -8/Recycling | Spotter reported a threat 8245 | -8/Recycling | Spotter reported a threat 8249 | -8/Recycling | Spotter reported a threat 8251 | -8/Recycling | Spotter reported a threat 8251 | -8/Recycling | Spotter reported a threat 8298 | -8/Recycling | Spotter reported a threat 8303 | -8/Recycling | Spotter reported a threat 8303 | -8/Recycling | Spotter reported a threat 8304 | -8/Recycling | Spotter reported a threat 8346 | -8/Recycling | Spotter reported a threat 8346 | -8/Recycling | Spotter reported a threat 8348 | -8/Recycling | Spotter reported a threat 8356 | -8/Recycling | Spotter reported a threat 8404 | -8/Recycling | Spotter reported a threat 8409 | -8/Recycling | Spotter reported a threat 8413 | -8/Recycling | Spotter reported a threat 8427 | -8/Recycling | Spotter reported a threat 8457 | -8/Recycling | Spotter reported a threat 8466 | -8/Recycling | Spotter reported a threat 8474 | -8/Recycling | Spotter reported a threat 8480 | -8/Recycling | Spotter reported a threat 8532 | -8/Recycling | Spotter reported a threat 8532 | -8/Recycling | Spotter reported a threat 8532 | -8/Recycling | Spotter reported a threat 8533 | -8/Recycling | Spotter reported a threat 8580 | -8/Recycling | Spotter reported a threat 8580 | -8/Recycling | Spotter reported a threat 8585 | -8/Recycling | Spotter reported a threat 8586 | -8/Recycling | Spotter reported a threat 8633 | -8/Recycling | Spotter reported a threat 8633 | -8/Recycling | Spotter reported a threat 8635 | -8/Recycling | Spotter reported a threat 8673 | -8/Recycling | Spotter reported a threat 8673 | -8/Recycling | Spotter reported a threat 8685 | -8/Recycling | Identified exit to Factory 8685 | -8/Recycling | Discovered exit to Factory (range 16) 8688 | -8/Recycling | Spotter reported a threat 8726 | -8/Recycling | Spotter reported a threat 8726 | -8/Recycling | Spotter reported a threat 8750 | -8/Recycling | Spotter reported a threat 8773 | -8/Recycling | Spotter reported a threat 8779 | -8/Recycling | Spotter reported a threat 8822 | -8/Recycling | Spotter reported a threat 8825 | -8/Recycling | Spotter reported a threat 8825 | -8/Recycling | Spotter reported a threat 8831 | -8/Recycling | Spotter reported a threat 8875 | -8/Recycling | Spotter reported a threat 8875 | -8/Recycling | Spotter reported a threat 8878 | -8/Recycling | Spotter reported a threat 8883 | -8/Recycling | Entered Factory 8883 | -6/Factory | Evolved 4 slots: Propulsion x4 8885 | -6/Factory | FarCom data flow suspended 9583 | -6/Factory | First assault squad dispatched 9686 | -6/Factory | Identified exit to Garrison 9688 | -6/Factory | Entered Garrison 9698 | -6/Garrison | Installed Relay Interface Framework 9892 | -6/Garrison | Triggered checkpoint 9893 | -6/Garrison | Spotted B-75 Beast 9985 | -6/Garrison | Destroyed B-75 Beast 10074 | -6/Garrison | Triggered checkpoint 10106 | -6/Garrison | Garrison Relay disabled 10281 | -6/Garrison | Phase Generator disabled 10474 | -6/Garrison | Triggered checkpoint 10664 | -6/Garrison | Triggered checkpoint 10832 | -6/Garrison | Identified Gui. Missile Launcher 10990 | -6/Garrison | Identified exit to Factory 10990 | -6/Garrison | Discovered exit to Factory (range 10) 10996 | -6/Garrison | Garrison Relay disabled 11011 | -6/Garrison | Triggered checkpoint 11026 | -6/Garrison | Entered Factory 11026 | -5/Factory | Evolved 2 slots: Propulsion x2 11183 | -5/Factory | Garrison activated, responded to threat 11527 | -5/Factory | Repaired F-cell Engine 11568 | -5/Factory | Build established: Bothacker-Sprinter 11623 | -5/Factory | Spotted B-75 Beast 11671 | -5/Factory | Identified exit to Garrison 11672 | -5/Factory | Entered Garrison 11674 | -5/Garrison | Expanded RIF knowledge: Alert ID Control 11688 | -5/Garrison | Triggered checkpoint 11710 | -5/Garrison | Identified exit to Factory 11710 | -5/Garrison | Discovered exit to Factory (range 9) 11752 | -5/Garrison | Triggered checkpoint 11776 | -5/Garrison | Garrison Relay disabled 11812 | -5/Garrison | Entered Factory 11812 | -4/Factory | Accompanied by 2 allies 11812 | -4/Factory | Evolved 2 slots: Power x1, Utility x1 11871 | -4/Factory | Identified exit to Extension 11871 | -4/Factory | Discovered exit to Extension (range 9) 11888 | -4/Factory | Entered Extension 11888 | -4/Extension | Accompanied by 3 allies 11915 | -4/Extension | Rescued a captive Derelict 11916 | -4/Extension | Rescued a captive Derelict 11960 | -4/Extension | Rescued A7 11977 | -4/Extension | Rescued a captive Derelict 11978 | -4/Extension | Rescued a captive Derelict 12034 | -4/Extension | Rescued a captive Derelict 12034 | -4/Extension | Rescued a captive Derelict 12241 | -4/Extension | Spotted B-86 Titan 12243 | -4/Extension | Spotted B-86 Titan 12248 | -4/Extension | Identified exit to Research 12248 | -4/Extension | Discovered exit to Research (range 3) 12319 | -4/Extension | Lost 6 parts (4n1u1w) 12343 | -4/Extension | Discovered exit to Research (range 16) 12343 | -4/Extension | Identified exit to Cetus 12343 | -4/Extension | Discovered exit to Cetus (range 16) 12363 | -4/Extension | Entered Cetus 12369 | -4/Cetus | Spotted Cetus Guard 12369 | -4/Cetus | Spotted Cetus Guard 12369 | -4/Cetus | Spotted Cetus Guard 12377 | -4/Cetus | Discovered exit to Research (range 15) 12389 | -4/Cetus | Entered Research 12389 | -3/Research | Evolved 2 slots: Utility x2 12538 | -3/Research | Identified exit to Research 12538 | -3/Research | Discovered exit to Research (range 14) 12549 | -3/Research | Found Enh. Force Lance 12570 | -3/Research | Entered another Research area 12570 | -2/Research | Evolved 2 slots: Utility x2 12573 | -2/Research | Lost 4 parts (1p1n1u1w) 12594 | -2/Research | Found Prototype Launcher 12651 | -2/Research | Identified Gui. Micro-nuke Launcher 12709 | -2/Research | Spotted B-90 Cyclops 12718 | -2/Research | Found Prototype Device 12719 | -2/Research | Identified Exp. Focal Shield 12733 | -2/Research | Spotted B-90 Cyclops 12783 | -2/Research | Identified exit to Quarantine 12783 | -2/Research | Discovered exit to Quarantine (range 4) 12801 | -2/Research | Entered Quarantine 12884 | -2/Quarantine | Met incapacitated Sigix Warrior 12884 | -2/Quarantine | Lockdown squad dispatched 12885 | -2/Quarantine | Acquired the access code to the Sigix quarantine chamber 12930 | -2/Quarantine | Found Alien Artifact 12931 | -2/Quarantine | Identified Subatomic Replicator 12934 | -2/Quarantine | Spotted Lightning 12934 | -2/Quarantine | Spotted Lightning 12934 | -2/Quarantine | Spotted Lightning 12953 | -2/Quarantine | Build established: Hacker-Sprinter 12973 | -2/Quarantine | Found Alien Artifact 12974 | -2/Quarantine | Identified Phase Armor 12993 | -2/Quarantine | Identified exit to Access 13051 | -2/Quarantine | First assault squad dispatched 13119 | -2/Quarantine | Self-destructed Last Messages --------------- Lgt. Quantum Reactor destroyed. Slug penetrates Wall. Slug penetrates U-05 Engineer. U-05 Engineer destroyed. Slug penetrates K-01 Serf. Penetrated by Slug. Dropped Lgt. Quantum Reactor. Acquired Lgt. Quantum Reactor. System corrupted: Energy discharge (-19). Acquired Adv. Phase Shifter. Dropped Adv. Phase Shifter. Diametric Drive destroyed. MOGYTUECBIUQZA8KOOKCA2XWE26=6/ Slug penetrates Wall. Critical hit. Impulse Thruster Array destroyed. EMDS Slug penetrates Wall. Field Propulsion Array destroyed. Slug penetrates Wall. EMDS Slug penetrates Wall. Map ----- +----------------------------------------------------+ | # # """ """ # #??# = #?????????? | | # # """"""""" # #??#! #?######??? | | ### # # #??# #### #? #??? | | ??# # # ???###+###??# # !#??? | | ###^ + # ????????????# # #??? | | # # # ????????????# + #??? | | # ############### ????????????# # #??? | | # # #???? ????????????+ # #??? | | # # """ """ #???? ????????????# ##########? | | # # """ """ #???? ????????????# # ! #? | | # # """ """ #?????????????????# # """ #? | | + + #?????????????????# # """ #? | | # # #??????############ + """ #? | | # # = #????? # # """ #? | | ### # #?????? + # """ #? | | ###########??????? # # """ #? | | #?????????????????? # # """ #? | | #??????????????????""""""" # # #? | | #??????????????????"" """ # ##########? | | ########????######????????######+### #?????????? | | ????????????# ?????????# #?????????? | | ????????????# """ ########## #?????????? | | ????????????# """ + #?????????? | | ????????????# """ # #######R#########?????????? | | ????????????# # # g * #???????????? | | ????????????# ?# + @ ! #???????????? | | ????????????######?##### ] !#???????????? | | ???????????????????????# """""" #???????????? | | ???????????????????????# """""" ??????????????? | | ???????????????????????# """"""???????????????? | | ????????????????????????##########???????????????? | | | | | | | | | | | | | | | | | | | | | | | | | | | | | | | | | | | | | | | +----------------------------------------------------+ Best States ------------- Heat Dissipation 59 Energy Generation 45 Energy Capacity 580 Matter Stores 300 Matter Capacity 300 Sight Range 16 Robot Scan Range 13 Terrain Scan Range 16 Terrain Scan Density 60 Additional Mass Support 9 Resistance: KI 65 Resistance: TH 35 Resistance: EX 35 Resistance: EM 35 Resistance: I 35 Resistance: S 35 Resistance: P 35 Propulsion Shielding 66 Melee Speed Boost 50 Evasion (%) 66 Targeting Accuracy 5 Melee Accuracy 6 Recoil Reduction 7 Offensive Hacking 20 Relay Coupler Types 147 Relay Coupler Value 4 Item Schematics ----------------- Cryofiber Web | -8/Storage | Hacked Weapon Cycler | -8/Storage | Hacked Point Defense Array | -6/Factory | Hacked System Restoration Module | -6/Factory | Hacked Cld. VTOL Module | -6/Factory | Scanalyzed Robot Schematics ------------------ None Fabricated ------------ Nothing Alien Tech Used ----------------- Subatomic Replicator Phase Armor Achievements -------------- Assimilation Complete Can't Catch Me False Reunion Packrat Part-time Excavator Prison Break Prolific Hacker Quantum Hacking True Hacker \\IAMDERELICT root@ Challenges ------------ None Game ------ Seed GammaOmegaCorpse Manual? 0 Play Time 04:13:27 Cumulative 30.0 hours Start 2021.09.18 @ 09:56:45 End 2021.12.09 @ 16:18:42 Sessions 27 Manual Loads 0 Difficulty Explorer Special Mode None Game No. 9 Rogue 0 Adventurer 0 Explorer 9 Win Type - Total 0 Types 0/0/0/0/0/0/0/0/0 Lore% 28 Gallery% 24 Achievement% 32 Wizard Run 0 Options --------- ASCII 0 Keyboard 0 Movement Mouse Keybinds 0 Fullscreen 1 Font 24/Smallcaps Map View 76x50 Tactical HUD 0 Map Filters NONE Filters NONE Steam 1 RUN: 682c64a2-dd82-4778-973f-1a350bd8ab6f